bitfinex/quotes_ETHUSD_20240729
["timestamp","ask_amount","ask_price","bid_price","bid_amount"]
[1722221201610,3.114388,3329.1,3328.1,2.40377]
[1722221201777,4.71033,3329.3,3328.2,2.40369]
[1722221201977,2.40311,3329.1,3328.2,2.40369]
[1722221202178,2.40312,3329.0,3328.0,2.40379]
[1722221202367,2.40312,3329.0,3328.1,2.40376]
[1722221203078,2.40327,3328.8,3327.8,4.77594]
[1722221203278,2.40326,3328.9,3327.8,2.372]
[1722221203484,0.55,3328.8,3328.0,2.40384]
[1722221203712,0.55,3328.8,3328.1,0.240384]
[1722221205307,2.40338,3328.7,3327.8,2.40398]
[1722221205469,0.55,3328.6,3327.8,2.40398]
[1722221205974,0.55,3328.6,3328.0,2.40383]
[1722221206175,0.55,3328.8,3328.0,2.40383]
[1722221206370,0.55,3328.8,3328.0,2.884611]
[1722221206739,2.21527647,3329.6,3328.8,2.40321]
[1722221206907,2.21527647,3329.6,3328.9,0.06007441]
[1722221207066,2.21527647,3329.6,3328.6,2.40334]
[1722221207274,2.21527647,3329.6,3329.1,2.40299]
[1722221207469,2.21527647,3329.6,3329.2,2.40297]
[1722221207676,2.21527647,3329.6,3328.9,2.40315]
[1722221208004,2.21527647,3329.6,3329.0,0.240315]
[1722221208306,2.21527647,3329.6,3328.4,0.06006659]
[1722221208307,2.40283,3329.4,3328.4,3.0]
[1722221208508,2.40283,3329.4,3328.2,5.40368]
[1722221208899,2.40304,3329.2,3328.3,2.40362]
[1722221209097,2.40291,3329.3,3328.3,5.40362]
[1722221209272,2.95298,3329.2,3328.4,0.840362]
[1722221209478,0.55,3329.2,3328.5,2.40348]
[1722221209818,2.40298,3329.2,3328.5,3.0]
[1722221210116,0.55,3329.1,3328.5,3.0]
[1722221210314,0.55,3329.1,3328.4,0.840362]
[1722221210497,0.55,3329.3,3328.5,0.6243982]
[1722221211127,2.95291,3329.3,3328.5,0.6243982]
[1722221211291,2.40307,3329.1,3328.5,3.0]
[1722221211474,0.55,3329.0,3328.2,3.0]
[1722221211879,0.53105373,3329.0,3328.2,3.0]
[1722221212324,2.40291,3329.3,3328.1,5.2773]
[1722221212687,2.40298,3329.2,3328.3,2.40362]
[1722221212936,2.40298,3329.2,3328.4,0.240362]
[1722221213319,2.40298,3329.2,3328.4,3.0]
[1722221213514,2.40298,3329.2,3328.1,4.68107]
[1722221213515,2.40312,3329.0,3328.2,3.0]
[1722221213945,2.40298,3329.2,3328.2,5.40369]
[1722221214161,0.55,3329.1,3328.2,5.40369]
[1722221214323,0.55,3329.1,3328.3,2.40362]
[1722221214522,0.55,3329.1,3328.5,2.40347]
[1722221214758,4.61796647,3329.6,3328.7,2.40332]
[1722221215256,2.21527647,3329.6,3328.8,2.40325]
[1722221216045,4.61796647,3329.6,3328.6,2.40336]
[1722221216247,4.61796647,3329.6,3328.6,2.9380772]
[1722221216248,0.55,3329.5,3328.6,2.9380772]
[1722221217022,4.61796647,3329.6,3328.8,2.3514]
[1722221217023,2.21527647,3329.6,3328.8,2.3514]
[1722221217349,2.21527647,3329.6,3329.3,2.40286]
[1722221217935,2.21527647,3329.6,3329.1,2.40299]
[1722221218134,2.21527647,3329.6,3329.3,2.40287]
[1722221218706,2.21527647,3329.6,3329.5,2.40276]
[1722221219112,2.21527647,3329.6,3329.5,4.80552]
[1722221219323,2.21527647,3329.6,3329.5,2.40276]
[1722221220543,2.21527647,3329.6,3329.5,4.80552]
[1722221220720,2.21527647,3329.6,3329.5,5.586072]
[1722221221127,2.21527647,3329.6,3329.5,0.780552]
[1722221221329,2.21527647,3329.6,3329.3,2.4029]
[1722221221625,2.21527647,3329.6,3329.3,5.4029]
[1722221222038,2.21527647,3329.6,3329.3,3.0]
[1722221222467,2.21527647,3329.6,3329.3,5.4029]
[1722221222666,2.21527647,3329.6,3329.4,2.4028]
[1722221222865,2.21527647,3329.6,3329.5,2.94304]
[1722221224278,2.21527647,3329.6,3329.5,0.54028]
[1722221227074,2.21527647,3329.6,3329.5,2.94304]
[1722221227579,2.21527647,3329.6,3329.5,0.54028]
[1722221227885,2.21527647,3329.6,3329.3,3.0]
[1722221228187,2.40292,3329.3,3328.4,2.40352]
[1722221228979,2.8898,3329.5,3328.0,2.3715]
[1722221228980,2.4031,3329.1,3328.0,2.3715]
[1722221229182,2.95313,3329.0,3328.1,2.40372]
[1722221229345,2.40324,3328.9,3328.1,0.477522]
[1722221229548,0.55,3328.8,3328.1,0.477522]
[1722221229745,2.95313,3329.0,3327.9,2.40391]
[1722221229746,2.40324,3328.9,3327.9,2.40391]
[1722221230082,0.55,3328.8,3327.6,6.64300716]
[1722221230293,0.55,3328.8,3327.2,12.44]
[1722221230294,2.40353,3328.5,3327.5,2.40415]
[1722221230475,2.40363,3328.3,3327.3,2.40434]
[1722221230778,2.40356,3328.4,3327.4,2.875414]
[1722221231194,0.55,3328.3,3327.0,4.27150716]
[1722221231549,2.40404,3327.8,3327.0,4.27150716]
[1722221231775,2.40414,3327.6,3326.7,2.3072]
[1722221232189,2.40399,3327.8,3326.7,4.71193]
[1722221232673,2.40399,3327.8,3326.8,2.4047]
[1722221232674,0.55,3327.7,3326.8,2.4047]
[1722221232878,0.55,3327.7,3326.9,0.47119]
[1722221233276,2.40354,3328.5,3326.3,2.40506]
[1722221233277,2.40433,3327.4,3326.3,4.66714]
[1722221233625,2.40381,3328.1,3326.9,2.40462]
[1722221233626,2.40378,3328.1,3326.9,2.40462]
[1722221233776,0.55,3328.0,3326.9,2.40462]
[1722221233978,0.55,3328.0,3327.0,0.240462]
[1722221234287,2.3611,3328.3,3327.3,2.40433]
[1722221234288,0.55,3328.1,3327.3,2.40433]
[1722221234482,2.40367,3328.3,3327.3,2.40433]
[1722221234483,0.55,3328.2,3327.3,2.40433]
[1722221234670,0.55,3328.2,3327.4,0.06009941]
[1722221235075,2.9537,3328.2,3327.2,3.0]
[1722221235276,2.9537,3328.2,3327.1,2.40443]
[1722221235277,2.95371,3328.2,3327.3,0.540443]
[1722221235783,2.95371,3328.2,3327.0,3.240462]
[1722221235784,2.95371,3328.2,3327.1,2.40444]
[1722221235985,2.3611,3328.7,3327.2,2.33869943]
[1722221236187,2.3611,3328.7,3327.4,2.40426]
[1722221236376,2.3611,3328.7,3327.5,2.644616]
[1722221236577,2.40313,3329.0,3327.6,2.40412]
[1722221236914,2.40313,3329.0,3327.6,5.40412]
[1722221237117,2.4034,3328.7,3327.6,5.40412]
[1722221237681,0.55,3328.6,3327.6,5.40412]
[1722221237878,0.55,3328.6,3327.7,0.5644546]
[1722221238081,0.55,3328.7,3327.7,0.5644546]
[1722221238390,0.55,3328.9,3328.0,2.40383]
[1722221238592,0.55,3328.9,3327.8,2.40398]
[1722221238791,2.40327,3328.8,3327.8,2.40398]
[1722221239244,0.55,3328.7,3327.9,2.40391]
[1722221239595,0.55,3328.8,3327.8,3.0]
[1722221239928,2.40341,3328.6,3327.9,0.540405]
[1722221240246,0.55,3328.5,3327.9,2.40385]
[1722221240540,2.3649,3329.2,3326.8,2.40471]
[1722221240541,2.40298,3329.2,3328.1,4.85776]
[1722221240708,2.40298,3329.2,3328.2,0.06008213]
[1722221241031,2.40325,3328.9,3327.9,2.4039]
[1722221241234,0.55,3328.8,3327.9,2.884695]
[1722221241436,0.55,3328.8,3328.1,2.40376]
[1722221241732,3.0,3329.5,3327.9,2.884665]
[1722221241733,0.55,3329.0,3327.9,2.884665]
[1722221242034,2.40344,3328.6,3327.6,2.40411]
[1722221242242,2.40344,3328.6,3327.7,2.40405]
[1722221242530,0.55,3328.5,3327.8,2.40397]
[1722221242734,0.55,3328.5,3328.1,2.40375]
[1722221242896,0.55,3328.5,3328.0,2.40383]
[1722221243096,0.55,3328.8,3328.1,0.240383]
[1722221243305,0.55,3328.8,3327.6,3.0]
[1722221243534,2.9533,3328.8,3327.7,2.40399]
[1722221243734,0.55,3328.8,3327.9,2.40391]
[1722221243926,0.55,3328.9,3327.9,2.40391]
[1722221244096,0.55,3329.0,3327.9,2.884706]
[1722221244528,2.40306,3329.1,3328.2,2.40368]
[1722221245148,3.0,3329.3,3327.9,0.480796]
[1722221245348,2.40317,3329.0,3327.9,0.480796]
[1722221245550,2.40317,3329.0,3328.0,2.40384]
[1722221245736,2.40312,3329.0,3328.1,0.2884636]
[1722221245939,2.71747962,3329.4,3328.5,2.40343]
[1722221246140,0.55,3329.3,3328.5,2.40343]
[1722221246432,2.95291,3329.3,3328.3,2.40359]
[1722221247260,2.95291,3329.3,3328.4,2.40355]
[1722221247467,2.40299,3329.2,3328.4,0.48672734]
[1722221247662,0.55,3329.1,3328.4,2.40354]
[1722221248122,0.55,3329.2,3328.4,2.40354]
[1722221248388,2.21527647,3329.6,3328.7,2.40328]
[1722221248574,2.21527647,3329.6,3329.0,2.40306]
[1722221248778,2.21527647,3329.6,3329.0,0.480632]
[1722221249156,2.21527647,3329.6,3328.8,2.40326]
[1722221249484,2.21527647,3329.6,3328.9,2.40319]
[1722221249691,2.21527647,3329.6,3328.8,2.40325]
[1722221249893,2.21527647,3329.6,3329.1,2.40305]
[1722221250386,2.21527647,3329.6,3329.1,2.46311946]
[1722221250577,2.21527647,3329.6,3329.1,2.94975041]
[1722221250974,2.21527647,3329.6,3329.1,0.48663095]
[1722221251155,2.21527647,3329.6,3329.0,2.40307]
[1722221251566,2.21527647,3329.6,3328.5,2.658]
[1722221251567,2.21527647,3329.6,3328.8,3.0]
[1722221251863,2.21527647,3329.6,3329.2,2.40297]
[1722221252792,2.21527647,3329.6,3329.0,2.40311]
[1722221252965,2.21527647,3329.6,3329.1,2.40304]
[1722221253161,2.21527647,3329.6,3329.2,0.240304]
[1722221253396,2.21527647,3329.6,3328.9,3.0]
[1722221253602,2.21527647,3329.6,3329.0,2.40307]
[1722221254421,2.21527647,3329.6,3328.9,5.40316]
[1722221254559,2.21527647,3329.6,3328.9,3.0]
[1722221254758,2.21527647,3329.6,3328.7,5.40333]
[1722221254759,4.61799647,3329.6,3328.7,5.40333]
[1722221254959,2.95277,3329.5,3328.8,0.540333]
[1722221255165,0.55,3329.5,3328.8,2.40326]
[1722221255396,0.55,3329.5,3328.9,2.40314]
[1722221255571,0.55,3329.5,3329.0,2.643424]
[1722221255966,0.55,3329.5,3329.0,0.240314]
[1722221256801,0.55,3329.5,3328.6,2.4034]
[1722221257007,0.55,3329.5,3328.8,2.40325]
[1722221257866,2.40287,3329.4,3328.7,3.0]
[1722221258192,0.55,3329.3,3328.4,5.40353]
[1722221258553,0.55,3329.3,3328.5,0.786933]
[1722221258678,2.40305,3329.1,3328.2,2.40368]
[1722221258881,0.55,3329.3,3328.4,2.40352]
[1722221258882,0.55,3329.0,3328.4,2.40352]
[1722221259082,2.9529,3329.3,3328.4,2.40352]
[1722221259620,0.55,3329.3,3328.5,2.40348]
[1722221259794,2.95291,3329.3,3328.5,0.48071]
[1722221260119,2.40331,3328.8,3327.9,0.480796]
[1722221260508,0.55,3328.7,3327.7,4.27150716]
[1722221260710,0.55,3328.7,3327.7,2.40405]
[1722221260910,2.40346,3328.6,3327.7,2.40405]
[1722221261125,0.55,3328.5,3327.7,2.40405]
[1722221261280,2.95348,3328.5,3327.7,2.40405]
[1722221261480,2.95348,3328.5,3327.8,0.240405]
[1722221261697,0.55,3328.5,3327.8,0.240405]
[1722221261898,5.40301,3329.2,3328.0,2.40378]
[1722221261899,3.0,3329.2,3328.0,2.40378]
[1722221262226,2.40291,3329.3,3328.5,2.40348]
[1722221262383,2.40291,3329.3,3328.3,2.40357]
[1722221262590,2.40291,3329.3,3328.4,0.480724]
[1722221263127,2.40278,3329.5,3328.4,2.884204]
[1722221263480,2.40263,3329.7,3328.6,2.40336]
[1722221264027,2.40263,3329.7,3328.4,0.480724]
[1722221264028,2.40264,3329.7,3328.5,2.40346]
[1722221264211,4.61801647,3329.6,3328.6,2.4034]
[1722221264531,4.61801647,3329.6,3328.7,0.480686]
[1722221264684,2.40277,3329.5,3328.7,0.480686]
[1722221264886,2.40277,3329.5,3328.6,2.4034]
[1722221265115,2.95283,3329.4,3328.6,2.4034]
[1722221265497,0.55,3329.4,3328.6,2.4034]
[1722221265711,0.55,3329.4,3328.7,0.24034]
[1722221265887,2.95284,3329.4,3328.7,0.24034]
[1722221266084,0.55,3329.4,3328.7,0.24034]
[1722221266325,2.21527647,3329.6,3328.9,2.40318]
[1722221266326,0.55,3329.5,3328.9,2.40318]
[1722221266527,2.21527647,3329.6,3328.9,2.40318]
[1722221266742,2.21527647,3329.6,3329.0,2.40311]
[1722221266961,2.21527647,3329.6,3329.1,2.40303]
[1722221267789,2.21527647,3329.6,3328.9,4.71637]
[1722221268444,2.21527647,3329.6,3328.9,2.3132]
[1722221268623,2.21527647,3329.6,3328.9,4.71638]
[1722221269588,2.21527647,3329.6,3329.0,2.40306]
[1722221269760,2.21527647,3329.6,3329.1,0.711944]
[1722221271437,2.21527647,3329.6,3329.1,3.114984]
[1722221271614,2.21527647,3329.6,3329.1,0.711944]
[1722221273543,2.21527647,3329.6,3328.8,2.40323]
[1722221274063,2.21527647,3329.6,3329.5,7.11892]
[1722221274364,2.21527647,3329.6,3329.5,10.11892]
[1722221277265,2.21527647,3329.6,3329.5,7.71616]
[1722221277650,2.21527647,3329.6,3329.5,10.11892]
[1722221277854,2.21527647,3329.6,3329.5,11.130812]
[1722221279740,2.21527647,3329.6,3329.5,6.414652]
[1722221281080,2.21527647,3329.6,3328.7,2.40331]
[1722221281289,2.21527647,3329.6,3329.1,2.40304]
[1722221281642,2.21527647,3329.6,3329.3,2.40288]
[1722221281863,2.21527647,3329.6,3329.1,2.40299]
[1722221282070,2.21527647,3329.6,3329.2,2.40293]
[1722221282293,2.21527647,3329.6,3329.4,2.40283]
[1722221282859,2.21527647,3329.6,3329.5,2.40276]
[1722221283407,2.21527647,3329.6,3329.5,9.86628]
[1722221283708,0.47305148,3329.6,3329.5,15.31358]
[1722221283913,0.1467961,3329.9,3329.5,16.844938]
[1722221284204,0.54619309,3330.8,3329.9,2.4473]
[1722221284352,0.54619309,3330.8,3330.7,2.40189]
[1722221285156,0.54619309,3330.8,3330.4,2.658]
[1722221285357,0.54619309,3330.8,3330.6,2.40191]
[1722221285591,0.54619309,3330.8,3330.5,0.2658]
[1722221286101,0.54619309,3330.8,3330.7,2.40189]
[1722221286266,0.54619309,3330.8,3330.7,4.80378]
[1722221287303,0.54619309,3330.8,3330.7,2.40189]
[1722221287510,0.54619309,3330.8,3330.6,2.40195]
[1722221287693,0.54619309,3330.8,3330.7,2.40189]
[1722221287995,0.54619309,3330.8,3330.6,0.532583]
[1722221290341,0.54619309,3330.8,3330.5,0.2658]
[1722221292400,0.54619309,3330.8,3330.5,2.66782]
[1722221293136,0.54619309,3330.8,3330.6,2.40195]
[1722221293936,0.54619309,3330.8,3330.6,2.40196]
[1722221294693,0.54619309,3330.8,3330.5,0.2658]
[1722221294928,0.54619309,3330.8,3330.6,0.266791]
[1722221295630,0.54619309,3330.8,3330.5,2.40203]
[1722221295802,0.54619309,3330.8,3330.6,2.40192]
[1722221297713,0.54619309,3330.8,3330.4,4.80415]
[1722221297902,0.54619309,3330.8,3330.5,2.40203]
[1722221298594,0.54619309,3330.8,3330.7,2.40189]
[1722221298796,0.54619309,3330.8,3330.7,2.642079]
[1722221298996,0.54619309,3330.8,3330.7,0.240189]
[1722221299237,0.54619309,3330.8,3330.6,2.40195]
[1722221300834,0.54619309,3330.8,3330.5,2.40202]
[1722221301058,0.54619309,3330.8,3330.6,2.40192]
[1722221301911,0.54619309,3330.8,3330.7,2.40189]
[1722221304115,0.54619309,3330.8,3330.7,4.80378]
[1722221304320,0.54619309,3330.8,3330.7,5.284158]
[1722221304716,0.54619309,3330.8,3330.7,0.480378]
[1722221304944,0.54619309,3330.8,3330.6,2.40195]
[1722221305663,0.54619309,3330.8,3330.6,4.80386]
[1722221305815,0.54619309,3330.8,3330.6,2.40191]
[1722221307643,0.54619309,3330.8,3330.7,2.40189]
[1722221307845,0.54619309,3330.8,3330.6,2.40196]
[1722221308056,0.54619309,3330.8,3330.7,0.540196]
[1722221308459,0.54619309,3330.8,3330.7,2.942086]
[1722221309923,0.54619309,3330.8,3330.7,0.540196]
[1722221310266,0.54619309,3330.8,3330.5,3.0]
[1722221310479,0.54619309,3330.8,3330.5,2.40202]
[1722221310620,0.54619309,3330.8,3330.5,5.40203]
[1722221310819,0.54619309,3330.8,3330.6,2.40196]
[1722221312350,0.54619309,3330.8,3330.5,3.0]
[1722221312561,0.54619309,3330.8,3330.3,2.40211]
[1722221312738,0.54619309,3330.8,3330.4,2.642321]
[1722221312935,0.54619309,3330.8,3330.5,5.40203]
[1722221313507,0.54619309,3330.8,3330.6,2.40196]
[1722221314327,0.54619309,3330.8,3330.7,2.40189]
[1722221315748,0.54619309,3330.8,3330.7,4.80378]
[1722221315944,0.54619309,3330.8,3330.7,5.584158]
[1722221317129,0.54619309,3330.8,3330.7,3.182268]
[1722221318365,0.54619309,3330.8,3330.7,0.780378]
[1722221318929,0.54619309,3330.8,3330.7,5.584158]
[1722221323874,0.54619309,3330.8,3330.7,10.404248]
[1722221324081,0.31452066,3332.0,3331.1,2.40156]
[1722221324386,2.64398537,3332.8,3331.1,2.40156]
[1722221324387,2.3765,3332.1,3331.3,2.4014]
[1722221324526,2.3765,3332.1,3330.9,3.0]
[1722221324727,2.3765,3332.1,3330.8,4.04642827]
[1722221324728,0.23765,3332.0,3330.8,4.04642827]
[1722221324961,2.4011,3331.8,3331.0,2.40167]
[1722221325143,0.23765,3332.0,3331.0,2.40167]
[1722221325144,2.35105,3331.9,3331.0,2.40167]
[1722221325477,2.852554,3331.9,3331.0,2.40167]
[1722221325969,0.55,3331.8,3331.0,2.40167]
[1722221326545,2.95112,3331.8,3330.8,4.04642827]
[1722221326745,2.40125,3331.6,3330.8,3.0]
[1722221326965,0.55,3331.5,3330.8,3.0]
[1722221327171,0.55,3331.5,3330.8,2.40182]
[1722221327384,0.55,3331.7,3330.8,5.40182]
[1722221327584,1.0803784,3331.7,3330.8,5.40182]
[1722221327749,0.55,3331.7,3330.8,5.40182]
[1722221328145,2.95122,3331.7,3330.8,5.40182]
[1722221328341,2.40125,3331.6,3330.6,5.40191]
[1722221328559,2.95132,3331.5,3330.6,5.40196]
[1722221328856,2.95132,3331.5,3330.6,3.0]
[1722221328857,0.55,3331.5,3330.6,3.0]
[1722221329171,0.55,3331.5,3330.4,3.240211]
[1722221329172,2.2535,3331.4,3330.4,3.240211]
[1722221329371,4.65493,3331.4,3330.5,2.40199]
[1722221329576,0.55,3331.3,3330.6,0.5642201]
[1722221329887,0.55,3331.3,3330.6,3.5642201]
[1722221330875,2.95146,3331.3,3330.6,3.5642201]
[1722221331082,0.55,3331.3,3330.6,2.9661801]
[1722221332451,0.55,3331.3,3330.7,2.40189]
[1722221332784,0.23765,3332.0,3330.9,2.40175]
[1722221332785,2.40103,3331.9,3330.9,2.40175]
[1722221332994,2.9145,3331.8,3330.9,2.40175]
[1722221333890,2.9145,3331.8,3331.1,2.4016]
[1722221334391,2.9145,3331.8,3331.2,2.40153]
[1722221334545,2.9145,3331.8,3331.0,2.40163]
[1722221334899,2.9145,3331.8,3331.0,2.881965]
[1722221335093,5.31562,3331.8,3331.0,2.881965]
[1722221335254,2.40117,3331.7,3330.8,2.40179]
[1722221335586,0.55,3331.6,3330.9,2.4017]
[1722221335790,0.55,3331.7,3331.0,2.40167]
[1722221336360,2.95118,3331.7,3330.9,2.40173]
[1722221336992,0.55,3331.7,3330.9,2.40169]
[1722221337167,0.55,3331.7,3331.0,2.40167]
[1722221337977,0.55,3331.7,3330.7,3.23866701]
[1722221338185,2.95118,3331.7,3330.9,2.40172]
[1722221338387,0.55,3331.7,3330.9,2.9657587]
[1722221338703,0.55,3331.7,3331.1,2.40156]
[1722221338987,0.55,3331.7,3330.9,2.9657587]
[1722221339292,2.95117,3331.7,3330.9,2.9657587]
[1722221339675,2.95117,3331.7,3330.7,2.40184]
[1722221339676,2.40125,3331.6,3330.7,2.40184]
[1722221339884,2.95133,3331.5,3330.6,2.40192]
[1722221340052,2.40133,3331.5,3330.6,2.40192]
[1722221340246,0.55,3331.4,3330.6,2.40192]
[1722221340562,2.95139,3331.4,3330.6,2.40195]
[1722221340966,0.55,3331.4,3330.7,2.40187]
[1722221341164,0.55,3331.5,3330.7,2.40187]
[1722221341351,0.55,3331.5,3330.8,2.40181]
[1722221342487,0.55,3331.5,3331.0,2.40167]
[1722221342797,4.76561,3331.8,3330.8,3.182166]
[1722221342798,0.55,3331.6,3330.8,3.182166]
[1722221343001,0.55,3331.6,3331.0,2.40167]
[1722221343159,0.55,3331.7,3331.0,2.40167]
[1722221343491,0.55,3331.7,3330.8,0.780376]
[1722221343693,0.55,3331.7,3330.8,2.40179]
[1722221343877,0.55,3331.7,3330.6,3.0]
[1722221344080,0.55,3331.7,3331.1,2.4016]
[1722221344494,0.55,3331.7,3331.2,2.40148]
[1722221344836,2.2772,3332.2,3331.5,2.40131]
[1722221345012,2.2772,3332.2,3331.3,0.240148]
[1722221345154,4.67766,3332.7,3331.7,2.40117]
[1722221345791,2.40053,3332.6,3331.8,2.40109]
[1722221346098,2.40053,3332.6,3331.7,2.40112]
[1722221346312,2.40031,3332.9,3332.0,2.40091]
[1722221346458,3.04901288,3332.8,3332.0,2.40091]
[1722221346856,3.04901288,3332.8,3331.9,2.40102]
[1722221346857,5.44941288,3332.8,3331.9,2.40102]
[1722221347370,5.44941288,3332.8,3331.7,2.40116]
[1722221347371,5.44941288,3332.8,3332.0,2.40095]
[1722221347796,3.04901288,3332.8,3332.0,2.40095]
[1722221348506,0.55,3332.7,3332.0,2.40095]
[1722221348810,0.55,3332.7,3332.1,2.40088]
[1722221349028,179.24155806,3333.0,3332.2,2.40079]
[1722221349329,179.24155806,3333.0,3332.2,3.0]
[1722221349612,179.24155806,3333.0,3332.8,2.40033]
[1722221350383,179.24155806,3333.0,3332.6,2.40051]
[1722221350603,179.24155806,3333.0,3332.3,2.40067]
[1722221350797,179.24155806,3333.0,3332.4,0.540067]
[1722221351011,181.57865806,3333.0,3332.0,0.480205]
[1722221351217,2.40038,3332.8,3331.9,2.40098]
[1722221351821,0.55,3332.7,3331.9,2.40098]
[1722221352288,0.55,3332.7,3331.7,2.4011]
[1722221352489,0.55,3332.7,3331.6,2.40124]
[1722221352490,2.40062,3332.5,3331.6,2.40124]
[1722221352730,2.3514,3332.3,3331.6,0.240124]
[1722221352931,2.3514,3332.3,3331.4,2.40132]
[1722221353229,4.75214,3332.3,3331.4,2.40132]
[1722221353595,2.40089,3332.1,3331.0,2.40165]
[1722221353826,4.75214,3332.3,3331.0,2.40165]
[1722221354090,4.75214,3332.3,3331.1,0.90417572]
[1722221354091,3.426074,3332.2,3331.1,0.90417572]
[1722221354296,0.55,3332.2,3331.4,2.40139]
[1722221354836,0.55,3332.2,3331.5,2.40131]
[1722221355192,0.55,3332.2,3331.2,2.40153]
[1722221355419,0.55,3332.2,3331.1,0.90417572]
[1722221355603,2.40092,3332.1,3331.2,2.73204457]
[1722221355803,0.55,3332.0,3331.1,3.30576572]
[1722221356094,0.55,3332.0,3331.1,3.30577572]
[1722221356289,2.40104,3331.9,3331.1,0.90417572]
[1722221356536,0.55,3331.8,3331.1,0.90417572]
[1722221356706,0.55,3331.8,3331.2,0.39041757]
[1722221357036,2.3514,3332.3,3331.7,2.40114]
[1722221357243,2.3514,3332.3,3331.6,2.40124]
[1722221357441,2.95086,3332.2,3331.5,3.0]
[1722221357609,2.95086,3332.2,3331.3,5.40145]
[1722221357809,2.95086,3332.2,3331.4,2.98056676]
[1722221358015,0.55,3332.2,3331.5,3.0]
[1722221358316,0.55,3332.2,3331.5,5.40131]
[1722221358515,0.55,3332.2,3331.7,2.40116]
[1722221358723,0.55,3332.2,3331.8,0.240116]
[1722221358925,0.55,3332.5,3331.8,0.240116]
[1722221359154,0.55,3332.5,3331.8,2.641196]
[1722221359330,2.4338,3332.7,3331.8,0.240116]
[1722221359643,2.4338,3332.7,3331.4,0.57918676]
[1722221360046,2.4338,3332.7,3331.9,2.40103]
[1722221360339,2.4338,3332.7,3331.8,2.40106]
[1722221360539,2.4338,3332.7,3332.1,2.40088]
[1722221360841,181.64181806,3333.0,3332.2,2.40081]
[1722221361138,179.24155806,3333.0,3332.4,2.40066]
[1722221361516,179.24155806,3333.0,3332.5,2.40059]
[1722221362302,179.24155806,3333.0,3332.6,2.4005]
[1722221362516,179.24155806,3333.0,3332.4,2.40066]
[1722221362714,179.24155806,3333.0,3332.5,2.40059]
[1722221362914,179.24155806,3333.0,3332.5,2.640649]
[1722221363836,179.24155806,3333.0,3332.6,2.40051]
[1722221364215,179.24155806,3333.0,3332.5,0.240059]
[1722221364452,179.24155806,3333.0,3332.2,2.640881]
[1722221364453,0.55,3332.9,3332.3,2.40072]
[1722221364626,0.55,3332.9,3332.4,2.40067]
[1722221365042,179.24155806,3333.0,3332.8,2.40036]
[1722221365446,179.24155806,3333.0,3332.9,2.40031]
[1722221366164,179.24155806,3333.0,3332.7,2.4004]
[1722221366311,179.24155806,3333.0,3332.8,2.64037]
[1722221366907,179.24155806,3333.0,3332.3,5.40072]
[1722221367177,179.24155806,3333.0,3332.4,2.40064]
[1722221367674,179.24155806,3333.0,3332.3,5.40073]
[1722221367874,179.24155806,3333.0,3332.3,3.0]
[1722221367875,0.55,3332.9,3332.3,3.0]
[1722221368014,0.55,3332.9,3332.3,0.3240081]
[1722221368968,2.40053,3332.6,3331.6,2.40119]
[1722221369129,0.55,3332.5,3331.4,2.98056676]
[1722221369332,0.55,3332.5,3331.4,0.57918676]
[1722221369645,2.40056,3332.6,3331.0,4.9574]
[1722221369829,2.4006,3332.5,3331.5,2.40126]
[1722221370031,2.95047,3332.7,3331.6,2.40123]
[1722221370032,5.35097,3332.7,3331.6,2.40123]
[1722221370234,2.95047,3332.7,3331.7,2.40115]
[1722221370861,0.55,3332.7,3331.9,2.40102]
[1722221371066,0.55,3332.7,3331.9,2.881237]
[1722221371623,0.55,3332.7,3332.0,2.40096]
[1722221371869,0.55,3332.7,3331.9,2.881237]
[1722221372025,0.55,3332.7,3332.0,2.40091]
[1722221372228,179.24155806,3333.0,3332.1,0.2881127]
[1722221372470,0.55,3332.9,3332.1,0.2881127]
[1722221372677,0.55,3332.9,3332.1,2.6889927]
[1722221372981,0.55,3332.9,3332.2,2.40081]
[1722221373136,179.24155806,3333.0,3332.4,2.4006]
[1722221373341,0.55,3332.9,3332.5,2.64065]
[1722221373742,179.24155806,3333.0,3332.6,2.40052]
[1722221374186,179.24155806,3333.0,3332.7,2.40045]
[1722221374777,0.01899863,3332.8,3332.7,2.40045]
[1722221374979,0.01899863,3332.8,3332.7,2.90456]
[1722221375554,0.01899863,3332.8,3332.7,5.30501]
[1722221376386,0.01899863,3332.8,3332.7,8.30501]
[1722221378337,0.01899863,3332.8,3332.7,10.70546]
[1722221380460,1e-08,3332.8,3332.7,10.70546]
[1722221380892,179.24155806,3333.0,3332.9,4.80062]
[1722221381106,179.24155806,3333.0,3332.9,8.871131]
[1722221382839,179.24155806,3333.0,3332.9,13.744041]
[1722221383045,174.86282849,3333.0,3332.9,16.144351]
[1722221383245,173.75417849,3333.0,3332.9,11.271441]
[1722221383410,172.75692849,3333.0,3332.9,13.671751]
[1722221383734,172.75692849,3333.0,3332.9,8.871131]
[1722221384223,172.75692849,3333.0,3332.9,11.271441]
[1722221384749,172.75692849,3333.0,3332.9,8.871131]
[1722221385943,172.75692849,3333.0,3332.9,11.271441]
[1722221386234,171.51515513,3333.0,3332.9,11.271441]
[1722221386754,170.40130872,3333.0,3332.9,11.271441]
[1722221387072,170.40130872,3333.0,3332.9,13.671751]
[1722221387272,157.13469908,3333.0,3332.9,18.499561]
[1722221387851,152.63424908,3333.0,3332.9,16.099251]
[1722221388037,149.63394908,3333.0,3332.9,16.099251]
[1722221388238,149.63394908,3333.0,3332.9,17.14326537]
[1722221388414,149.63394908,3333.0,3332.9,16.099251]